fUST/lending_fUST_20260111
["ID","MTS","AMOUNT","RATE_DAILY","PERIOD"]
[401324552,1768137049821,-6526.8339861,0.0003198,2]
[401324553,1768137049831,-151.0,0.0003198,7]
[401324554,1768137049841,-151.0,0.0003198,7]
[401324555,1768137049850,-151.0,0.0003198,31]
[401324556,1768137049860,-151.0,0.0003198,31]
[401324557,1768137049870,-64359.48881651,0.00032,10]
[401324558,1768137049880,-151.0,0.00032,17]
[401324559,1768137049889,-3672.0,0.00032057,2]
[401324560,1768137049899,-1087.80747027,0.00032084,2]
[401324561,1768137049908,-151.0,0.000321,16]
[401324562,1768137049918,-13367.01,0.000321,2]
[401324563,1768137049929,-2600.19116857,0.00032146,2]
[401324564,1768137049937,-3674.0,0.00032154,2]
[401324565,1768137049947,-328.0,0.00032191,2]
[401324566,1768137049956,-151.0,0.000322,14]
[401324567,1768137049965,-526.6,0.0003222,5]
[401324568,1768137049987,-153.90472729,0.00032298,5]
[401324569,1768137050007,-1095.40809829,0.00032298,5]
[401324570,1768137050021,-250.0,0.00032298,5]
[401324571,1768137050039,-445.202766,0.00032298,5]
[401324572,1768137050056,-461.67526834,0.00032298,5]
[401324573,1768137050072,-250.0,0.00032298,5]
[401324574,1768137050089,-478.75725327,0.00032298,5]
[401324575,1768137050105,-250.0,0.00032298,5]
[401324576,1768137050120,-496.47127164,0.00032298,5]
[401324577,1768137050137,-250.0,0.00032298,5]
[401324578,1768137050154,-151.0,0.00032298,5]
[401324579,1768137050169,-514.84070869,0.00032298,5]
[401324580,1768137050182,-151.0,0.00032298,5]
[401324581,1768137050196,-533.88981491,0.00032298,5]
[401324582,1768137050211,-250.15738416,0.00032298,5]
[401324583,1768137050226,-151.0,0.00032298,5]
[401324584,1768137050242,-553.64373807,0.00032298,5]
[401324585,1768137050259,-151.0,0.00032298,5]
[401324586,1768137050275,-574.12855637,0.00032298,5]
[401324587,1768137050287,-595.37131296,0.00032298,5]
[401324588,1768137050300,-617.40005154,0.00032298,5]
[401324589,1768137050318,-760.8076711,0.00032298,5]
[401324590,1768137050331,-151.0,0.00032298,5]
[401324591,1768137050343,-2150.738,0.00032298,5]
[401324592,1768137050359,-151.0,0.00032298,5]
[401324593,1768137050371,-2230.315306,0.00032298,5]
[401324594,1768137050383,-151.0,0.00032298,5]
[401324595,1768137050397,-2312.83697232,0.00032298,5]
[401324596,1768137050409,-296.59935167,0.00032298,5]
[401324597,1768137050422,-2398.4119403,0.00032298,5]
[401324598,1768137050437,-2487.15318209,0.00032298,5]
[401324599,1768137050451,-2579.17784983,0.00032298,5]
[401324600,1768137050464,-256.83787609,0.00032298,5]
[401324601,1768137050477,-151.0,0.00032298,5]
[401324602,1768137050490,-151.0,0.00032298,5]
[401324603,1768137050503,-151.0,0.00032298,5]
[401324604,1768137050517,-151.0,0.00032298,5]
[401324605,1768137050530,-151.0,0.00032298,5]
[401324606,1768137050542,-151.0,0.00032298,5]
[401324607,1768137050555,-151.0,0.00032298,5]
[401324608,1768137050568,-151.0,0.00032298,5]
[401324609,1768137050580,-151.0,0.00032298,5]
[401324610,1768137050592,-151.0,0.00032298,5]
[401324611,1768137050604,-250.0,0.00032298,5]
[401324612,1768137050616,-151.0,0.00032298,5]
[401324613,1768137050629,-271.40103972,0.00032298,5]
[401324614,1768137050642,-151.0,0.00032298,5]
[401324615,1768137050655,-151.0,0.00032298,5]
[401324616,1768137050667,-151.0,0.00032298,5]
[401324617,1768137050680,-151.0,0.00032298,5]
[401324618,1768137050693,-151.0,0.00032298,5]
[401324619,1768137050706,-154.07167593,0.00032298,5]
[401324620,1768137050718,-387.0,0.00032326,2]
[401324621,1768137050730,-2600.19116857,0.00032361,2]
[401324622,1768137050743,-5000.0,0.0003237,2]
[401324623,1768137050755,-151.0,0.000324,14]
[401324624,1768137050768,-1171.0,0.000324,120]
[401324625,1768137050780,-151.0,0.000325,13]
[401324626,1768137050793,-155.5739919,0.00032581,10]
[401324627,1768137050806,-151.0,0.000326,10]
[401324628,1768137050819,-534.24217102,0.00032607,2]
[401324629,1768137050832,-151.61039102,0.0003267,14]
[401324630,1768137050845,-848687.3840408,0.0003267,2]
[401324631,1768137051241,-500.0,0.00013698,2]
[401324632,1768137051250,-458.20916911,0.00013698,2]
[401324633,1768137051261,-41.79083089,0.00013698,2]
[401324634,1768137051271,-374.07409846,0.00013698,2]
[401324635,1768137051280,-84.13507065,0.000249,7]
[401324636,1768137051312,-66.86492935,0.000249,7]
[401324637,1768137051322,-151.0,0.000249,7]
[401324638,1768137051332,-151.0,0.000249,7]
[401324639,1768137051341,-151.0,0.00031845,31]
[401324640,1768137051350,-151.0,0.00031845,31]
[401324641,1768137051363,-162.380719,0.00032298,5]
[401324642,1768137051372,-223.13477496,0.00032298,5]
[401324643,1768137051383,-1719.96907484,0.0003267,2]
[401324644,1768137051395,-9048.38911953,0.0003267,2]
[401324645,1768137051411,-151.0,0.00031845,31]
[401324646,1768137051420,-267.15410387,0.0003267,2]
[401324647,1768137051432,-70925.19297235,0.0003267,2]
[401324648,1768137051443,-7508.04858177,0.0003267,2]
[401324649,1768137051454,-1096.94,0.0003267,2]
[401324650,1768137051466,-542.41,0.0003267,2]
[401324651,1768137183927,200.0,0.00030137,120]
[401324652,1768137199725,200.0,0.00030137,120]
[401324653,1768137215369,200.0,0.00030137,120]
[401324654,1768137228202,200.0,0.00030137,120]
[401324655,1768137244763,176.53,0.00030137,120]
[401324659,1768137604511,329.8,5e-05,2]
[401324660,1768137605182,329.8,5.5e-05,2]
[401324661,1768137605827,329.8,6e-05,2]
[401324662,1768137606478,329.8,6.5e-05,2]
[401324663,1768137607025,329.8,7.1e-05,2]
[401324664,1768137607689,329.8,7.6e-05,2]
[401324665,1768137608250,329.8,8.1e-05,2]
[401324666,1768137619805,-329.8,8.6e-05,2]
[401324674,1768137857851,-300.0,8.724e-05,2]
[401324688,1768138204226,209.08,5e-05,2]
[401324701,1768138232198,-300.23,9.1e-05,2]
[401324705,1768138238391,-29.57,9.1e-05,2]
[401324706,1768138238400,-547.0,9.1e-05,2]
[401324707,1768138238410,-246.94690583,9.225e-05,2]
[401324708,1768138238419,-300.0,9.576e-05,2]
[401324709,1768138238430,-300.0,9.576e-05,2]
[401324710,1768138238439,-300.0,9.576e-05,2]
[401324711,1768138238449,-300.0,9.576e-05,2]
[401324712,1768138238458,-1200.0,9.576e-05,2]
[401324713,1768138238468,-500.0,9.577e-05,2]
[401324714,1768138238477,-500.0,9.577e-05,2]
[401324715,1768138238487,-500.0,9.577e-05,2]
[401324716,1768138238496,-500.0,9.577e-05,2]
[401324717,1768138238506,-500.0,9.577e-05,2]
[401324718,1768138238515,-500.0,9.577e-05,2]
[401324719,1768138238525,-154.30171575,9.577e-05,2]
[401324720,1768138238534,-2411.0,9.577e-05,2]
[401324722,1768138238544,-196.786,9.598e-05,2]
[401324723,1768138238553,-50000.0,9.598e-05,2]
[401324725,1768138238563,-329.8,9.6e-05,2]
[401324726,1768138238572,-1000000.0,9.689e-05,2]
[401324727,1768138238581,-500.0,9.714e-05,2]
[401324729,1768138238590,-500.0,9.714e-05,2]
[401324731,1768138238600,-500.0,9.714e-05,2]
[401324733,1768138238609,-500.0,9.714e-05,2]
[401324735,1768138238618,-500.0,9.714e-05,2]
[401324736,1768138238627,-201.95802809,9.714e-05,2]
[401324737,1768138238636,-500.0,9.714e-05,2]
[401324738,1768138238645,-187.35985221,9.714e-05,2]
[401324739,1768138238655,-2411.0,9.714e-05,2]
[401324740,1768138238664,-500.0,9.788e-05,2]
[401324741,1768138238674,-327.97013448,9.788e-05,2]
[401324742,1768138238683,-500.0,9.788e-05,2]
[401324743,1768138238692,-500.0,9.788e-05,2]
[401324744,1768138238701,-500.0,9.788e-05,2]
[401324745,1768138238711,-636.9296582,9.788e-05,2]
[401324746,1768138238719,-500.0,9.788e-05,2]
[401324747,1768138238729,-344.62617307,9.788e-05,2]
[401324748,1768138238738,-500.0,9.793e-05,2]
[401324749,1768138238747,-240.65630942,9.793e-05,2]
[401324750,1768138238756,-500.0,9.793e-05,2]
[401324751,1768138238764,-500.0,9.793e-05,2]
[401324752,1768138238772,-500.0,9.793e-05,2]
[401324753,1768138238780,-500.0,9.793e-05,2]
[401324754,1768138238787,-500.0,9.793e-05,2]
[401324755,1768138238795,-500.0,9.793e-05,2]
[401324756,1768138238805,-500.0,9.793e-05,2]
[401324757,1768138238814,-500.0,9.793e-05,2]
[401324758,1768138238823,-532.96136633,9.793e-05,2]
[401324759,1768138238832,-500.0,9.793e-05,2]
[401324760,1768138238841,-500.0,9.793e-05,2]
[401324761,1768138238851,-500.0,9.793e-05,2]
[401324762,1768138238860,-500.0,9.793e-05,2]
[401324763,1768138238869,-500.0,9.793e-05,2]
[401324764,1768138238879,-500.0,9.793e-05,2]
[401324765,1768138238888,-500.0,9.793e-05,2]
[401324766,1768138238898,-500.0,9.793e-05,2]
[401324767,1768138238907,-500.0,9.793e-05,2]
[401324768,1768138238920,-500.0,9.793e-05,2]
[401324769,1768138238932,-500.0,9.793e-05,2]
[401324770,1768138238942,-500.0,9.793e-05,2]
[401324771,1768138238952,-500.0,9.793e-05,2]
[401324772,1768138238962,-500.0,9.793e-05,2]
[401324773,1768138238972,-532.96136633,9.793e-05,2]
[401324774,1768138238982,-500.0,9.793e-05,2]
[401324775,1768138238992,-151.88,9.793e-05,2]
[401324776,1768138239001,-500.0,9.851e-05,2]
[401324777,1768138239015,-223.56062369,9.851e-05,2]
[401324778,1768138239025,-500.0,9.851e-05,2]
[401324779,1768138239035,-500.0,9.851e-05,2]
[401324780,1768138239045,-500.0,9.851e-05,2]
[401324781,1768138239055,-500.0,9.851e-05,2]
[401324782,1768138239065,-163.14839871,9.851e-05,2]
[401324783,1768138239075,-2411.0,9.851e-05,2]
[401324784,1768138239211,-3176.86810458,9.851e-05,2]
[401324785,1768138239223,-500.0,9.988e-05,2]
[401324786,1768138239232,-300.0,9.988e-05,2]
[401324787,1768138239243,-500.0,9.988e-05,2]
[401324788,1768138239252,-500.0,9.988e-05,2]
[401324789,1768138239261,-250.0,9.988e-05,2]
[401324790,1768138239270,-2411.0,9.988e-05,2]
[401324791,1768138239281,-300.0,9.988e-05,2]
[401324792,1768138239290,-300.0,9.988e-05,2]
[401324793,1768138239299,-300.0,9.988e-05,2]
[401324794,1768138239308,-300.0,9.988e-05,2]
[401324795,1768138239318,-300.0,9.988e-05,2]
[401324796,1768138239327,-300.0,9.988e-05,2]
[401324797,1768138239336,-300.0,9.988e-05,2]
[401324798,1768138239345,-300.0,9.988e-05,2]
[401324799,1768138239356,-300.0,9.988e-05,2]
[401324800,1768138239365,-300.0,9.988e-05,2]
[401324801,1768138239374,-300.0,9.988e-05,2]
[401324802,1768138239383,-300.0,9.988e-05,2]
[401324803,1768138239392,-300.0,9.988e-05,2]
[401324804,1768138239401,-300.0,9.988e-05,2]
[401324805,1768138239410,-300.0,9.988e-05,2]
[401324806,1768138239419,-600.0,9.988e-05,2]
[401324807,1768138239431,-500.0,0.00010067,2]
[401324808,1768138239440,-151.88,0.00010067,2]
[401324809,1768138239449,-329.8,0.000101,2]
[401324810,1768138239457,-500.0,0.00010125,2]
[401324811,1768138239466,-500.00000003,0.00010125,2]
[401324812,1768138239475,-500.0,0.00010125,2]
[401324813,1768138239484,-2411.0,0.00010125,2]
[401324814,1768138239492,-500.0,0.00010262,2]
[401324815,1768138239501,-500.0,0.00010262,2]
[401324816,1768138239511,-2411.0,0.00010262,2]
[401324817,1768138239521,-500.0,0.00010341,2]
[401324818,1768138239530,-151.89900327,0.00010341,2]
[401324819,1768138239540,-500.0,0.00010399,2]
[401324820,1768138239550,-500.0,0.00010399,2]
[401324821,1768138239558,-2411.0,0.00010399,2]
[401324822,1768138239568,-250.0,0.00010411,2]
[401324823,1768138239576,-420.0,0.00010534,2]
[401324824,1768138239587,-500.0,0.00010536,2]
[401324825,1768138239596,-500.0,0.00010536,2]
[401324826,1768138239605,-2411.0,0.00010536,2]
[401324827,1768138239614,-329.8,0.000106,2]
[401324828,1768138239623,-500.0,0.00010615,2]
[401324829,1768138239632,-623.15407208,0.00010673,2]
[401324830,1768138239642,-500.0,0.00010673,2]
[401324831,1768138239652,-2411.0,0.00010673,2]
[401324832,1768138239661,-500.0,0.0001081,2]
[401324833,1768138239670,-2411.0,0.0001081,2]
[401324834,1768138239679,-500.0,0.00010889,2]
[401324835,1768138239688,-500.0,0.00010947,2]
[401324836,1768138239699,-2411.0,0.00010947,2]
[401324837,1768138239707,-720.0,0.00010987,2]
[401324838,1768138239716,-151.0,0.00011,2]
[401324839,1768138239726,-151.0,0.00011,2]
[401324840,1768138239736,-500.0,0.00011084,2]
[401324841,1768138239745,-2411.0,0.00011084,2]
[401324842,1768138239755,-500.0,0.00011163,2]
[401324843,1768138239764,-329.8,0.000112,2]
[401324844,1768138239773,-500.0,0.00011221,2]
[401324845,1768138239785,-2411.0,0.00011221,2]
[401324846,1768138239795,-291.39734888,0.00011225,2]
[401324847,1768138239806,-500.0,0.00011358,2]
[401324848,1768138239815,-2411.0,0.00011358,2]
[401324849,1768138239824,-500.0,0.00011437,2]
[401324850,1768138239833,-152.72644825,0.00011495,2]
[401324851,1768138239843,-2411.0,0.00011495,2]
[401324852,1768138239855,-587.0,0.00011587,2]
[401324853,1768138239864,-2411.0,0.00011632,2]
[401324854,1768138239873,-329.8,0.000117,2]
[401324855,1768138239881,-500.0,0.00011711,2]
[401324856,1768138239891,-500.0,0.00011985,2]
[401324857,1768138239900,-250.0,0.00012024,2]
[401324858,1768138239910,-864.0,0.00012085,2]
[401324859,1768138239919,-329.8,0.000122,2]
[401324860,1768138239929,-500.0,0.00012259,2]
[401324861,1768138239939,-1432.63,0.00012329,2]
[401324862,1768138239947,-1193.86,0.00012329,2]
[401324863,1768138239956,-994.89,0.00012329,2]
[401324864,1768138239966,-829.07,0.00012329,2]
[401324865,1768138239975,-690.89,0.00012329,2]
[401324866,1768138239985,-575.74,0.00012329,2]
[401324867,1768138239994,-479.79,0.00012329,2]
[401324868,1768138240003,-399.82,0.00012329,2]
[401324869,1768138240014,-333.19,0.00012329,2]
[401324870,1768138240024,-277.65,0.00012329,2]
[401324871,1768138240033,-231.38,0.00012329,2]
[401324872,1768138240043,-192.82,0.00012329,2]
[401324873,1768138240053,-160.68,0.00012329,2]
[401324874,1768138240063,-803.42,0.00012329,2]
[401324875,1768138240072,-1030.16010818,0.00012329,2]
[401324876,1768138240081,-1030.16010818,0.00012329,2]
[401324877,1768138240091,-1030.16010818,0.00012329,2]
[401324878,1768138240100,-1030.16010818,0.00012329,2]
[401324879,1768138240109,-1030.16010818,0.00012329,2]
[401324880,1768138240118,-1030.16010818,0.00012329,2]
[401324881,1768138240127,-1030.16010818,0.00012329,2]
[401324882,1768138240137,-1030.16010818,0.00012329,2]
[401324883,1768138240146,-1030.16010818,0.00012329,2]
[401324884,1768138240155,-1030.16010818,0.00012329,2]
[401324885,1768138240165,-1030.16010818,0.00012329,2]
[401324886,1768138240179,-1030.16010818,0.00012329,2]
[401324888,1768138240188,-1030.16010818,0.00012329,2]
[401324890,1768138240198,-1030.16010818,0.00012329,2]
[401324892,1768138240207,-1030.16010818,0.00012329,2]
[401324895,1768138240220,-1030.16010818,0.00012329,2]
[401324897,1768138240229,-1030.16010818,0.00012329,2]
[401324899,1768138240238,-1030.16010818,0.00012329,2]
[401324900,1768138240248,-1030.16010818,0.00012329,2]
[401324902,1768138240257,-1030.16010818,0.00012329,2]
[401324904,1768138240266,-1030.16010818,0.00012329,2]
[401324905,1768138240275,-1030.16010818,0.00012329,2]
[401324906,1768138240284,-1030.16010818,0.00012329,2]
[401324907,1768138240293,-1030.16010818,0.00012329,2]
[401324909,1768138240303,-1030.16010818,0.00012329,2]
[401324911,1768138240311,-1030.16010818,0.00012329,2]
[401324913,1768138240321,-1030.16010818,0.00012329,2]
[401324915,1768138240330,-1030.16010818,0.00012329,2]
[401324917,1768138240339,-1030.16010818,0.00012329,2]
[401324919,1768138240348,-1030.16010818,0.00012329,2]
[401324921,1768138240357,-1030.16010818,0.00012329,2]
[401324923,1768138240367,-1030.16010818,0.00012329,2]
[401324925,1768138240376,-1030.16010818,0.00012329,2]
[401324927,1768138240385,-1030.16010818,0.00012329,2]
[401324929,1768138240395,-1030.16010818,0.00012329,2]
[401324931,1768138240404,-1030.16010818,0.00012329,2]
[401324933,1768138240413,-1030.16010818,0.00012329,2]
[401324935,1768138240422,-1030.16010818,0.00012329,2]
[401324937,1768138240433,-1030.16010818,0.00012329,2]
[401324939,1768138240442,-1030.16010818,0.00012329,2]
[401324941,1768138240452,-1030.16010818,0.00012329,2]
[401324943,1768138240461,-1030.16010818,0.00012329,2]
[401324945,1768138240470,-1030.16010818,0.00012329,2]
[401324947,1768138240479,-1030.16010818,0.00012329,2]
[401324949,1768138240489,-1030.16010818,0.00012329,2]
[401324951,1768138240499,-1030.16010818,0.00012329,2]
[401324953,1768138240508,-1030.16010818,0.00012329,2]
[401324955,1768138240518,-1030.16010818,0.00012329,2]
[401324957,1768138240528,-1030.16010818,0.00012329,2]
[401324959,1768138240537,-1030.16010818,0.00012329,2]
[401324961,1768138240549,-1030.16010818,0.00012329,2]
[401324963,1768138240558,-1030.16010818,0.00012329,2]
[401324965,1768138240568,-1030.16010818,0.00012329,2]
[401324967,1768138240577,-1030.16010818,0.00012329,2]
[401324969,1768138240586,-1004.40610548,0.00012329,2]
[401324971,1768138240595,-1004.40610548,0.00012329,2]
[401324973,1768138240604,-1004.40610548,0.00012329,2]
[401324975,1768138240613,-1004.40610548,0.00012329,2]
[401324977,1768138240622,-1004.40610548,0.00012329,2]
[401324979,1768138240631,-1004.40610548,0.00012329,2]
[401324981,1768138240640,-1004.40610548,0.00012329,2]
[401324983,1768138240649,-1004.40610548,0.00012329,2]
[401324985,1768138240657,-1004.40610548,0.00012329,2]
[401324987,1768138240666,-1004.40610548,0.00012329,2]
[401324989,1768138240675,-1004.40610548,0.00012329,2]
[401324991,1768138240684,-1004.40610548,0.00012329,2]
[401324993,1768138240693,-1004.40610548,0.00012329,2]
[401324995,1768138240702,-1004.40610548,0.00012329,2]
[401324997,1768138240711,-1004.40610548,0.00012329,2]
[401324999,1768138240720,-1004.40610548,0.00012329,2]
[401325000,1768138240728,-1004.40610548,0.00012329,2]
[401325002,1768138240738,-1004.40610548,0.00012329,2]
[401325004,1768138240746,-1004.40610548,0.00012329,2]
[401325006,1768138240756,-1004.40610548,0.00012329,2]
[401325008,1768138240764,-1004.40610548,0.00012329,2]
[401325010,1768138240774,-1004.40610548,0.00012329,2]
[401325012,1768138240783,-1004.40610548,0.00012329,2]
[401325015,1768138240792,-1004.40610548,0.00012329,2]
[401325017,1768138240801,-1004.40610548,0.00012329,2]
[401325018,1768138240810,-1004.40610548,0.00012329,2]
[401325020,1768138240819,-1004.40610548,0.00012329,2]
[401325022,1768138240829,-1004.40610548,0.00012329,2]
[401325025,1768138240838,-1004.40610548,0.00012329,2]
[401325027,1768138240847,-1004.40610548,0.00012329,2]
[401325029,1768138240856,-1004.40610548,0.00012329,2]
[401325031,1768138240865,-1004.40610548,0.00012329,2]
[401325033,1768138240874,-1004.40610548,0.00012329,2]
[401325035,1768138240883,-1004.40610548,0.00012329,2]
[401325036,1768138240892,-1004.40610548,0.00012329,2]
[401325038,1768138240901,-1004.40610548,0.00012329,2]
[401325040,1768138240910,-3521.30514597,0.000125,2]
[401325043,1768138240920,-448.52259365,0.00012533,2]
[401325045,1768138240930,-329.8,0.000127,2]
[401325046,1768138240939,-823.0,0.00012746,2]
[401325048,1768138240949,-329.8,0.000132,2]
[401325051,1768138240958,-335.84779193,0.00013225,2]
[401325053,1768138240967,-500.0,0.00013273,2]
[401325054,1768138240976,-500.0,0.00013273,2]
[401325056,1768138240985,-500.0,0.00013273,2]
[401325058,1768138240994,-500.0,0.00013273,2]
[401325060,1768138241004,-500.24269708,0.00013273,2]
[401325062,1768138241016,-500.0,0.00013273,2]
[401325064,1768138241025,-500.0,0.00013273,2]
[401325066,1768138241035,-500.0,0.00013273,2]
[401325068,1768138241044,-500.0,0.00013273,2]
[401325070,1768138241053,-500.0,0.00013273,2]
[401325072,1768138241062,-500.0,0.00013273,2]
[401325074,1768138241071,-500.0,0.00013273,2]
[401325076,1768138241080,-500.0,0.00013273,2]
[401325078,1768138241089,-500.0,0.00013273,2]
[401325080,1768138241099,-500.0,0.00013273,2]
[401325083,1768138241108,-500.0,0.00013273,2]
[401325084,1768138241117,-500.0,0.00013273,2]
[401325086,1768138241126,-500.0,0.00013273,2]
[401325089,1768138241135,-500.0,0.00013273,2]
[401325090,1768138241145,-500.0,0.00013273,2]
[401325092,1768138241154,-500.0,0.00013273,2]
[401325094,1768138241163,-500.0,0.00013273,2]
[401325096,1768138241172,-500.0,0.00013273,2]
[401325098,1768138241182,-500.0,0.00013273,2]
[401325100,1768138241191,-522.11051368,0.00013273,2]
[401325102,1768138241200,-500.0,0.00013273,2]
[401325104,1768138241209,-500.0,0.00013273,2]
[401325107,1768138241219,-500.0,0.00013273,2]
[401325109,1768138241228,-500.0,0.00013273,2]
[401325110,1768138241237,-500.0,0.00013273,2]
[401325112,1768138241246,-500.0,0.00013273,2]
[401325115,1768138241256,-500.0,0.00013273,2]
[401325117,1768138241266,-500.0,0.00013273,2]
[401325119,1768138241275,-500.0,0.00013273,2]
[401325121,1768138241284,-500.0,0.00013273,2]
[401325122,1768138241293,-500.0,0.00013273,2]
[401325124,1768138241303,-500.0,0.00013273,2]
[401325127,1768138241313,-500.0,0.00013273,2]
[401325129,1768138241324,-500.0,0.00013273,2]
[401325131,1768138241333,-500.0,0.00013273,2]
[401325133,1768138241342,-500.0,0.00013273,2]
[401325135,1768138241352,-500.0,0.00013273,2]
[401325137,1768138241361,-500.0,0.00013273,2]
[401325139,1768138241370,-500.0,0.00013273,2]
[401325141,1768138241379,-500.0,0.00013273,2]
[401325143,1768138241388,-500.0,0.00013273,2]
[401325145,1768138241399,-500.0,0.00013273,2]
[401325147,1768138241408,-500.0,0.00013273,2]
[401325149,1768138241417,-500.0,0.00013273,2]
[401325162,1768138241526,-500.0,0.00013273,2]
[401325164,1768138241535,-495.22027723,0.00013273,2]
[401325166,1768138241544,-500.0,0.00013273,2]
[401325168,1768138241553,-500.29461734,0.00013273,2]
[401325170,1768138241562,-402.502339,0.00013273,2]
[401325172,1768138241573,-1000.0,0.00013294,2]
[401325174,1768138241582,-300.0,0.00013673,2]
[401325176,1768138241591,-500.0,0.00013698,2]
[401325178,1768138241602,-500.0,0.00013698,2]
[401325180,1768138241611,-500.0,0.00013698,2]
[401325182,1768138241621,-500.0,0.00013698,2]
[401325184,1768138241629,-564.53140937,0.00013698,2]
[401325186,1768138241639,-500.0,0.00013698,2]
[401325188,1768138241648,-500.0,0.00013698,2]
[401325190,1768138241657,-500.0,0.00013698,2]
[401325192,1768138241666,-500.0,0.00013698,2]
[401325194,1768138241675,-500.0,0.00013698,2]
[401325196,1768138241684,-500.0,0.00013698,2]
[401325198,1768138241694,-500.0,0.00013698,2]
[401325200,1768138241703,-534.57834013,0.00013698,2]
[401325202,1768138241712,-1000.0,0.00013698,2]
[401325204,1768138241722,-1000.0,0.00013698,2]
[401325206,1768138241731,-1000.0,0.00013698,2]
[401325208,1768138241742,-1000.0,0.00013698,2]
[401325210,1768138241752,-1000.0,0.00013698,2]
[401325212,1768138241762,-1000.0,0.00013698,2]
[401325214,1768138241771,-593.71236514,0.00013698,2]
[401325216,1768138241780,-500.0,0.00013698,2]
[401325218,1768138241789,-500.0,0.00013698,2]
[401325220,1768138241798,-500.0,0.00013698,2]
[401325222,1768138241807,-500.0,0.00013698,2]
[401325224,1768138241817,-500.0,0.00013698,2]
[401325226,1768138241827,-500.0,0.00013698,2]
[401325228,1768138241836,-500.0,0.00013698,2]
[401325230,1768138241845,-500.0,0.00013698,2]
[401325232,1768138241854,-500.0,0.00013698,2]
[401325234,1768138241863,-500.0,0.00013698,2]
[401325236,1768138241873,-500.0,0.00013698,2]
[401325238,1768138241882,-500.0,0.00013698,2]
[401325240,1768138241891,-500.0,0.00013698,2]
[401325242,1768138241900,-500.0,0.00013698,2]
[401325244,1768138241909,-500.0,0.00013698,2]
[401325246,1768138241919,-500.0,0.00013698,2]
[401325248,1768138241928,-500.0,0.00013698,2]
[401325250,1768138241938,-500.0,0.00013698,2]
[401325252,1768138241947,-500.0,0.00013698,2]
[401325255,1768138241956,-500.0,0.00013698,2]
[401325257,1768138241966,-500.0,0.00013698,2]
[401325259,1768138241975,-500.0,0.00013698,2]
[401325261,1768138241984,-239.37126777,0.00013698,2]
[401325263,1768138241993,-150.1,0.00013699,2]
[401325265,1768138242002,-2589.040574,0.00013699,2]
[401325267,1768138242014,-500.0,0.00013699,2]
[401325268,1768138242024,-500.0,0.00013699,2]
[401325271,1768138242034,-500.0,0.00013699,2]
[401325272,1768138242043,-500.0,0.00013699,2]
[401325275,1768138242052,-500.0,0.00013699,2]
[401325277,1768138242062,-500.0,0.00013699,2]
[401325279,1768138242071,-500.0,0.00013699,2]
[401325281,1768138242081,-500.0,0.00013699,2]
[401325283,1768138242091,-252.81793801,0.00013699,2]
[401325285,1768138242100,-500.0,0.00013699,2]
[401325287,1768138242110,-250.0,0.00013699,2]
[401325289,1768138242119,-500.0,0.00013699,2]
[401325291,1768138242128,-500.93038909,0.00013699,2]
[401325293,1768138242136,-500.0,0.00013699,2]
[401325295,1768138242145,-500.0,0.00013699,2]
[401325297,1768138242154,-500.0,0.00013699,2]
[401325299,1768138242163,-500.0,0.00013699,2]
[401325301,1768138242172,-500.0,0.00013699,2]
[401325303,1768138242182,-413.61388111,0.00013699,2]
[401325305,1768138242191,-500.0,0.00013699,2]
[401325307,1768138242200,-500.31275461,0.00013699,2]
[401325309,1768138242209,-500.0,0.00013699,2]
[401325311,1768138242219,-504.31837873,0.00013699,2]
[401325313,1768138242228,-500.0,0.00013699,2]